bitfinex-derivatives/quotes_SOLF0:USTF0_20250730
["timestamp","ask_amount","ask_price","bid_price","bid_amount"]
[1753898449822,11.44909275,180.1,179.97,106.12]
[1753898450024,11.44909275,180.07,179.97,106.12]
[1753898450423,17.00349275,180.04,179.9,11.44909275]
[1753898450624,11.44909275,180.01,179.9,106.22]
[1753898451012,11.44909275,180.06,179.93,11.44909275]
[1753898451217,11.44909275,180.03,179.9,106.22]
[1753898451420,11.44909275,179.97,179.81,17.01039275]
[1753898451624,11.44909275,179.97,179.82,106.28]
[1753898451924,5.5572,179.95,179.82,106.28]
[1753898452824,11.44909275,179.97,179.82,106.28]
[1753898453018,11.44909275,179.94,179.82,106.28]
[1753898453419,5.5572,179.95,179.82,106.28]
[1753898453620,11.44909275,179.97,179.82,106.28]
[1753898453821,5.5579,179.93,179.82,106.28]
[1753898454021,11.44909275,179.94,179.82,106.28]
[1753898455425,11.44909275,179.97,179.84,11.44909275]
[1753898456142,373.3,180.05,179.87,11.44909275]
[1753898456326,11.44909275,180.04,179.82,106.28]
[1753898456639,17.00549275,179.98,179.85,11.44909275]
[1753898456825,11.44909275,179.95,179.82,117.72909275]
[1753898457026,11.44909275,179.95,179.82,106.28]
[1753898457536,11.44909275,179.89,179.82,106.28]
[1753898457738,11.44909275,179.92,179.82,106.28]
[1753898457936,5.5578,179.93,179.82,106.28]
[1753898458138,17.00689275,179.93,179.82,106.28]
[1753898458337,11.44909275,179.93,179.82,106.28]
[1753898458638,11.44909275,179.9,179.82,106.28]
[1753898459028,17.00789275,179.9,179.82,106.28]
[1753898459234,17.00789275,179.9,179.79,212.14146255]
[1753898459431,11.44909275,179.9,179.79,212.14146255]
[1753898459632,11.44909275,179.9,179.78,373.3]
[1753898460333,384.74909275,180.05,179.84,11.44909275]
[1753898460539,384.74909275,180.05,179.78,373.3]
[1753898460540,373.3,180.05,179.94,11.44909275]
[1753898460838,11.44909275,180.03,179.89,118.06909275]
[1753898461031,5.556,179.99,179.89,106.62]
[1753898461232,11.44909275,179.97,179.84,106.72]
[1753898461432,11.44909275,179.94,179.8,11.44909275]
[1753898461837,11.44909275,179.96,179.8,11.44909275]
[1753898462233,401.51909275,180.05,179.78,480.66]
[1753898462234,11.44909275,179.9,179.78,373.3]
[1753898462435,11.44909275,179.9,179.74,11.44909275]
[1753898462632,11.44909275,179.87,179.74,107.48]
[1753898462943,11.44909275,179.87,179.74,118.92909275]
[1753898463139,11.44909275,179.9,179.74,118.92909275]
[1753898463339,11.44909275,179.83,179.71,213.46726831]
[1753898463641,11.44909275,179.8,179.68,373.58]
[1753898463843,17.01099275,179.8,179.67,107.5]
[1753898464236,11.44909275,179.8,179.67,107.48]
[1753898464437,11.44909275,179.83,179.69,11.44909275]
[1753898464637,11.44909275,179.8,179.58,373.58]
[1753898464940,11.44909275,179.77,179.65,11.44909275]
[1753898465336,11.44909275,179.77,179.59,107.66]
[1753898465535,11.44909275,179.74,179.6,11.44909275]
[1753898465732,11.44909275,179.74,179.59,107.66]
[1753898465938,11.44909275,179.71,179.59,107.66]
[1753898466538,11.44909275,179.75,179.61,11.44909275]
[1753898466939,11.44909275,179.75,179.58,373.58]
[1753898467138,11.44909275,179.71,179.58,373.58]
[1753898467736,11.44909275,179.68,179.57,108.36]
[1753898468137,17.01459275,179.68,179.57,108.36]
[1753898468344,147.24911295,179.78,179.51,11.44909275]
[1753898468345,11.44909275,179.62,179.51,11.44909275]
[1753898468546,11.44909275,179.62,179.51,108.54]
[1753898468753,18.24727572,179.63,179.51,108.54]
[1753898469136,5.569,179.57,179.51,5.5705]
[1753898469348,18.24727572,179.6,179.46,108.58]
[1753898469847,18.24727572,179.56,179.46,108.58]
[1753898470444,18.24727572,179.56,179.39,18.24727572]
[1753898470752,5.5717,179.49,179.4,108.56]
[1753898471047,18.24727572,179.53,179.4,108.56]
[1753898471240,18.24727572,179.53,179.38,373.84]
[1753898471445,18.24727572,179.5,179.35,108.66]
[1753898471644,108.66,179.59,179.39,18.24727572]
[1753898471849,108.66,179.59,179.48,5.5714]
[1753898471850,18.24727572,179.56,179.48,5.5714]
[1753898472049,18.24727572,179.56,179.42,18.24727572]
[1753898472237,5.5721,179.47,179.41,5.5738]
[1753898472443,18.24727572,179.5,179.32,18.24727572]
[1753898472644,18.24727572,179.5,179.35,18.24727572]
[1753898472841,18.24727572,179.5,179.32,18.24727572]
[1753898473346,5.5723,179.47,179.32,18.24727572]
[1753898473550,18.24727572,179.5,179.35,18.24727572]
[1753898473743,18.24727572,179.55,179.38,18.24727572]
[1753898473952,3.17,179.51,179.38,109.36]
[1753898474145,3.17,179.51,179.39,0.54]
[1753898474349,3.17,179.49,179.39,0.54]
[1753898474851,3.17,179.49,179.38,108.82]
[1753898475152,3.17,179.48,179.38,108.82]
[1753898475653,3.17,179.48,179.38,109.36]
[1753898475849,3.17,179.48,179.39,0.54]
[1753898476050,3.17,179.48,179.41,0.54]
[1753898476451,3.17,179.48,179.38,108.82]
[1753898477052,18.24727572,179.52,179.41,5.5739]
[1753898477250,3.17,179.51,179.38,108.82]
[1753898477455,21.41727572,179.51,179.39,0.54]
[1753898477756,3.17,179.47,179.31,18.24727572]
[1753898478051,3.17,179.47,179.33,0.54]
[1753898478257,3.17,179.47,179.34,18.24727572]
[1753898478453,21.41727572,179.47,179.35,0.54]
[1753898478659,3.17,179.39,179.22,18.24727572]
[1753898478847,3.17,179.39,179.24,0.54]
[1753898479153,3.17,179.36,179.24,0.52]
[1753898479455,3.17,179.33,179.24,0.52]
[1753898479854,5.577,179.31,179.24,0.52]
[1753898480153,3.17,179.3,179.22,109.44]
[1753898480354,18.24727572,179.37,179.29,5.5776]
[1753898480660,147.71358476,179.44,179.22,109.44]
[1753898480661,3.17,179.33,179.22,109.44]
[1753898481159,18.24727572,179.31,179.22,109.44]
[1753898481360,3.17,179.27,179.16,374.86]
[1753898481958,3.17,179.27,179.16,374.34]
[1753898482552,3.17,179.27,179.2,5.5804]
[1753898482758,3.17,179.27,179.16,374.34]
[1753898482955,18.24727572,179.25,179.15,0.52]
[1753898483354,3.17,179.22,179.13,109.54]
[1753898484155,3.17,179.21,179.09,509.26278258]
[1753898484356,3.17,179.16,179.09,509.26278258]
[1753898484660,3.17,179.16,179.1,0.52]
[1753898485660,3.17,179.16,179.05,0.52]
[1753898485861,3.17,179.16,179.07,0.52]
[1753898486052,3.17,179.2,179.07,18.24727572]
[1753898486263,3.17,179.2,179.08,0.52]
[1753898486458,3.17,179.18,179.1,0.52]
[1753898486658,3.17,179.18,179.07,0.52]
[1753898486958,18.24727572,179.17,179.04,110.12]
[1753898487162,3.17,179.16,179.04,110.12]
[1753898487555,18.24727572,179.17,179.04,110.12]
[1753898487758,3.17,179.1,179.04,110.12]
[1753898488162,3.17,179.13,179.06,0.52]
[1753898488662,3.09,179.19,179.06,0.52]
[1753898488866,3.09,179.19,179.08,18.24727572]
[1753898489057,5.5819,179.16,179.1,5.5835]
[1753898489252,3.09,179.19,179.06,0.54]
[1753898489253,3.09,179.15,179.06,0.54]
[1753898489456,3.09,179.15,179.02,0.54]
[1753898489658,3.09,179.13,179.02,0.54]
[1753898489858,3.09,179.13,179.03,0.54]
[1753898490060,3.09,179.13,178.97,374.62]
[1753898490061,18.24727572,179.11,178.97,374.62]
[1753898490255,3.09,179.1,178.97,375.16]
[1753898490659,3.09,179.01,178.97,380.2073]
[1753898490860,3.09,179.04,178.95,110.04]
[1753898491263,3.09,179.01,178.95,110.04]
[1753898491760,3.09,179.11,178.96,0.54]
[1753898491953,21.33727572,179.11,178.96,0.54]
[1753898492151,21.33727572,179.11,179.0,5.5866]
[1753898492152,5.5851,179.05,179.0,5.5866]
[1753898492454,3.09,179.08,178.97,0.54]
[1753898492663,3.09,179.08,178.99,0.54]
[1753898492962,3.09,179.08,178.96,0.54]
[1753898493166,3.09,179.05,178.95,110.68]
[1753898493461,3.09,179.03,178.96,0.54]
[1753898493859,3.09,179.02,178.93,0.54]
[1753898494165,3.09,179.02,178.92,0.93140225]
[1753898494560,3.09,179.02,178.93,0.54]
[1753898495164,3.09,179.05,178.96,0.54]
[1753898496268,3.09,179.05,178.99,0.54]
[1753898496454,127.24,179.2,178.92,13.07667376]
[1753898496455,3.09,179.07,178.92,13.07667376]
[1753898496661,3.09,179.04,178.92,13.07667376]
[1753898497264,11.60527151,178.99,178.9,110.46]
[1753898497457,5.5886,178.94,178.89,5.5898]
[1753898497654,3.09,178.93,178.84,122.14527151]
[1753898497863,3.09,178.93,178.85,0.54]
[1753898498064,3.09,178.93,178.85,1.51301831]
[1753898498259,3.09,178.93,178.85,0.97301831]
[1753898498858,3.09,178.91,178.85,0.97301831]
[1753898499063,3.09,178.95,178.85,0.97301831]
[1753898499264,5.5891,178.92,178.87,5.5904]
[1753898499470,11.60527151,178.96,178.85,0.54]
[1753898499767,3.09,178.95,178.88,0.54]
[1753898500358,3.09,178.95,178.85,0.97296391]
[1753898500668,3.09,178.93,178.82,0.54]
[1753898500856,3.09,178.93,178.85,0.54]
[1753898501061,3.09,178.99,178.88,0.54]
[1753898501256,3.09,178.99,178.88,6.1303]
[1753898501462,3.09,178.96,178.85,12.14527151]
[1753898501770,3.09,178.96,178.83,0.97304552]
[1753898502067,3.09,178.91,178.8,0.54]
[1753898502258,3.09,178.91,178.83,5.5918]
[1753898502259,5.5906,178.88,178.83,5.5918]
[1753898502456,3.09,178.87,178.8,1.51318158]
[1753898502669,3.09,178.9,178.81,12.14527151]
[1753898502865,11.60527151,178.94,178.81,12.14527151]
[1753898503167,3.09,178.93,178.81,12.14527151]
[1753898503363,3.09,178.9,178.82,5.5921]
[1753898503563,3.09,178.87,178.8,0.97318158]
[1753898503765,3.09,178.87,178.75,111.36]
[1753898504159,3.09,178.87,178.76,0.54]
[1753898504359,5.5917,178.84,178.8,5.5926]
[1753898504563,3.09,178.87,178.76,0.54]
[1753898504967,11.60527151,178.83,178.75,111.79349465]
[1753898505165,3.09,178.79,178.69,823.02047482]
[1753898505672,3.09,178.79,178.7,0.54]
[1753898505867,3.09,178.79,178.69,823.45431]
[1753898506068,3.09,178.78,178.69,0.97383518]
[1753898506370,11.60527151,178.78,178.67,375.58]
[1753898506567,11.60527151,178.75,178.67,0.97394419]
[1753898506766,3.09,178.74,178.65,0.54]
[1753898506966,3.09,178.74,178.65,6.5714805]
[1753898507277,14.69527151,178.74,178.64,111.1]
[1753898507473,3.09,178.73,178.64,111.1]
[1753898507769,3.09,178.73,178.64,112.0741214]
[1753898507962,3.09,178.73,178.64,111.1]
[1753898508167,3.09,178.7,178.63,11.60527151]
[1753898508365,3.09,178.85,178.66,11.60527151]
[1753898508568,5.5938,178.77,178.67,0.54]
[1753898508770,3.09,178.8,178.69,12.14527151]
[1753898508978,3.09,178.8,178.69,0.54]
[1753898509175,3.09,178.8,178.69,0.52]
[1753898509375,3.09,178.8,178.67,11.60527151]
[1753898509678,3.09,178.74,178.65,111.58]
[1753898510077,8.6849,178.74,178.68,5.5963]
[1753898510267,3.09,178.74,178.65,111.58]
[1753898510877,3.09,178.71,178.58,11.60527151]
[1753898511071,3.09,178.71,178.59,0.52]
[1753898511279,11.60527151,178.7,178.59,1.49424412]
[1753898511468,3.09,178.69,178.59,1.49424412]
[1753898511675,3.09,178.66,178.59,1.49424412]
[1753898512077,3.09,178.66,178.59,0.52]
[1753898512268,11.60527151,178.7,178.59,1.49446237]
[1753898512474,3.09,178.69,178.59,1.49446237]
[1753898512674,3.09,178.72,178.61,0.52]
[1753898512969,3.09,178.69,178.59,0.97446237]
[1753898513170,5.5988,178.62,178.57,0.52]
[1753898513476,11.60527151,178.64,178.53,0.52]
[1753898513676,5.5987,178.62,178.57,5.5998]
[1753898513878,3.09,178.61,178.54,0.97472166]
[1753898514176,5.5956,178.72,178.66,5.597]
[1753898514374,3.09,178.71,178.64,0.52]
[1753898514676,375.98,178.84,178.67,0.52]
[1753898514677,3.09,178.76,178.67,0.52]
[1753898514877,3.09,178.79,178.7,0.52]
[1753898515475,14.69527151,178.79,178.7,0.52]
[1753898515678,3.09,178.78,178.7,0.52]
[1753898515873,375.98,178.84,178.59,375.98]
[1753898515874,11.60527151,178.76,178.65,0.52]
[1753898516079,3.09,178.72,178.62,0.52]
[1753898516270,8.6854,178.72,178.62,0.52]
[1753898516476,3.09,178.72,178.62,0.52]
[1753898516875,11.60527151,178.73,178.62,0.52]
[1753898517076,3.09,178.69,178.62,0.52]
[1753898517275,3.09,178.69,178.6,113.74]
[1753898517484,3.09,178.68,178.61,0.52]
[1753898517672,3.09,178.68,178.6,113.74]
[1753898517979,3.09,178.66,178.6,113.74]
[1753898518177,3.09,178.66,178.55,0.52]
[1753898518373,11.60527151,178.65,178.54,114.77472166]
[1753898518575,2.98,178.6,178.49,376.59]
[1753898519079,2.98,178.6,178.52,0.53]
[1753898519375,2.98,178.67,178.47,3.72247679]
[1753898519576,2.98,178.53,178.47,3.72247679]
[1753898520079,14.58527151,178.53,178.47,3.72247679]
[1753898520274,2.98,178.61,178.5,0.53]
[1753898520479,2.98,178.61,178.52,12.13527151]
[1753898520670,2.98,178.61,178.55,11.60527151]
[1753898520874,2.98,178.64,178.56,0.53]
[1753898521380,2.98,178.58,178.48,0.97459882]
[1753898521583,2.98,178.57,178.48,0.97459882]
[1753898521975,2.98,178.57,178.53,5.6011]
[1753898522175,2.98,178.56,178.48,1.50498109]
[1753898522573,2.98,178.56,178.48,0.97498109]
[1753898522876,11.1928,178.69,178.47,3.72247679]
[1753898523074,11.60527151,178.62,178.47,3.72247679]
[1753898523278,11.60527151,178.53,178.47,3.72247679]
[1753898523485,2.98,178.54,178.47,3.72247679]
[1753898523680,2.98,178.51,178.47,3.72247679]
[1753898524081,2.98,178.44,178.37,0.53]
[1753898524481,2.98,178.43,178.35,0.97570549]
[1753898524676,2.98,178.43,178.32,0.53]
[1753898524976,2.98,178.43,178.34,0.53]
[1753898525179,2.98,178.42,178.36,11.60527151]
[1753898525380,2.98,178.42,178.34,0.53]
[1753898525579,11.60527151,178.41,178.29,0.53]
[1753898525782,2.98,178.4,178.29,0.53]
[1753898525976,2.98,178.4,178.3,11.60527151]
[1753898526185,2.98,178.4,178.31,0.53]
[1753898526682,2.98,178.43,178.34,0.53]
[1753898527082,2.98,178.43,178.3,1.50600651]
[1753898527279,2.98,178.41,178.3,1.50600651]
[1753898527683,2.98,178.37,178.3,1.50600651]
[1753898527882,2.98,178.44,178.3,0.97600651]
[1753898528086,2.98,178.44,178.31,0.53]
[1753898528285,2.98,178.44,178.34,18.48745706]
[1753898528485,11.1958,178.65,178.3,0.97600651]
[1753898528486,2.98,178.49,178.38,0.53]
[1753898529083,18.48745706,178.54,178.38,0.53]
[1753898529283,2.98,178.5,178.38,0.53]
[1753898529680,2.98,178.5,178.4,18.48745706]
[1753898529885,2.98,178.5,178.41,0.53]
[1753898530581,21.46745706,178.5,178.36,0.53]
[1753898530782,18.48745706,178.53,178.38,18.48745706]
[1753898530987,2.98,178.52,178.39,0.53]
[1753898531388,2.98,178.5,178.39,0.53]
[1753898531585,2.98,178.5,178.37,0.53]
[1753898531781,5.6036,178.46,178.37,0.53]
[1753898531989,2.98,178.56,178.39,18.48745706]
[1753898532187,2.98,178.55,178.4,0.53]
[1753898532383,2.98,178.55,178.42,18.48745706]
[1753898532580,2.98,178.61,178.46,0.53]
[1753898532980,2.98,178.59,178.48,0.53]
[1753898533387,8.5795,178.59,178.48,0.53]
[1753898533693,2.98,178.59,178.48,0.53]
[1753898533888,2.98,178.54,178.49,5.6025]
[1753898534186,2.98,178.54,178.43,117.97]
[1753898534385,21.46745706,178.54,178.43,117.97]
[1753898534589,2.98,178.53,178.43,117.44]
[1753898534893,2.98,178.5,178.4,0.53]
[1753898535486,2.98,178.5,178.4,18.48745706]
[1753898535689,2.98,178.57,178.44,0.53]
[1753898536690,2.98,178.54,178.44,0.53]
[1753898537794,2.98,178.5,178.41,0.53]
[1753898538296,2.98,178.55,178.41,0.53]
[1753898538690,8.5816,178.53,178.47,5.603]
[1753898538890,2.98,178.53,178.44,0.53]
[1753898539091,2.98,178.53,178.41,0.53]
[1753898539287,2.98,178.52,178.45,5.6036]
[1753898539492,2.98,178.52,178.43,0.53]
[1753898539794,2.98,178.48,178.4,19.01745706]
[1753898539991,2.98,178.48,178.4,0.53]
[1753898540189,18.48745706,178.44,178.31,0.53]
[1753898540495,33.45,178.59,178.26,19.01745706]
[1753898540496,2.98,178.4,178.26,19.01745706]
[1753898540987,2.98,178.4,178.26,0.53]
[1753898541187,2.98,178.4,178.28,0.53]
[1753898541690,2.98,178.4,178.28,18.48745706]
[1753898541893,2.98,178.4,178.29,0.53]
[1753898542094,18.48745706,178.47,178.32,0.53]
[1753898542293,2.98,178.43,178.32,0.53]
[1753898542493,2.98,178.4,178.32,0.53]
[1753898543096,2.98,178.4,178.29,0.53]
[1753898543505,2.98,178.41,178.27,0.97603388]
[1753898544102,2.98,178.41,178.28,5.6091]
[1753898544300,2.98,178.38,178.21,395.63745706]
[1753898544500,5.6104,178.25,178.19,5.6119]
[1753898544696,2.98,178.32,178.18,4.29627063]
[1753898544994,2.98,178.29,178.23,5.6106]
[1753898545195,2.98,178.29,178.19,0.9766365]
[1753898545390,2.98,178.29,178.23,0.53]
[1753898545596,2.98,178.35,178.2,0.53]
[1753898545903,11.209,178.44,178.19,0.9766365]
[1753898545904,2.98,178.31,178.19,0.9766365]
[1753898546099,2.98,178.31,178.19,1.5066365]
[1753898546297,2.98,178.3,178.18,4.29627063]
[1753898546691,2.98,178.3,178.2,18.48745706]
[1753898546894,18.48745706,178.37,178.24,0.53]
[1753898546895,2.98,178.36,178.24,0.53]
[1753898547098,2.98,178.37,178.24,0.53]
[1753898547297,21.46745706,178.37,178.24,0.53]
[1753898547499,2.98,178.36,178.26,5.6096]
[1753898547803,2.98,178.36,178.24,0.53]
[1753898548005,5.6071,178.35,178.28,5.609]
[1753898548193,2.98,178.34,178.28,5.609]
[1753898548397,18.48745706,178.33,178.19,1.50625293]
[1753898548595,2.98,178.32,178.19,1.50625293]
[1753898548796,12.76947979,178.32,178.19,1.50625293]
[1753898549099,5.6092,178.29,178.22,5.6111]
[1753898549396,3.23,178.28,178.18,16.53575042]
[1753898549705,3.23,178.28,178.18,3.76627063]
[1753898549901,3.23,178.28,178.18,4.28627063]
[1753898550097,3.23,178.28,178.19,0.52]
[1753898550299,3.23,178.28,178.2,12.76947979]
[1753898550801,3.23,178.28,178.21,0.52]
[1753898551303,3.23,178.35,178.23,13.28947979]
[1753898551604,3.23,178.35,178.24,0.52]
[1753898551904,3.23,178.34,178.24,0.52]
[1753898552104,3.23,178.34,178.26,12.76947979]
[1753898552404,3.23,178.35,178.27,0.52]
[1753898552596,3.23,178.44,178.32,12.76947979]
[1753898552796,3.23,178.43,178.33,0.52]
[1753898553304,3.23,178.43,178.36,0.52]
[1753898553702,3.23,178.43,178.33,0.52]
[1753898554805,3.23,178.43,178.38,5.6061]
[1753898555006,3.23,178.43,178.27,0.52]
[1753898555301,3.23,178.43,178.32,0.52]
[1753898555699,3.23,178.43,178.31,12.76947979]
[1753898555899,3.23,178.43,178.37,5.6063]
[1753898556100,3.23,178.43,178.32,0.52]
[1753898556403,3.23,178.43,178.34,13.28947979]
[1753898556800,3.23,178.43,178.33,12.76947979]
[1753898557104,15.99947979,178.42,178.3,118.28]
[1753898557297,3.23,178.41,178.3,118.28]
[1753898557495,3.23,178.41,178.35,12.76947979]
[1753898557698,131.06947979,178.56,178.37,0.52]
[1753898557699,3.23,178.44,178.37,0.52]
[1753898557898,3.23,178.44,178.38,12.76947979]
[1753898558204,3.23,178.42,178.35,12.76947979]
[1753898558798,3.23,178.42,178.34,0.52]
[1753898558999,3.23,178.42,178.34,13.28947979]
[1753898559298,3.23,178.42,178.31,13.28947979]
[1753898560406,3.23,178.42,178.31,0.52]
[1753898560600,3.23,178.42,178.3,118.28]
[1753898560908,3.23,178.37,178.3,118.28]
[1753898561308,8.8367,178.37,178.3,118.28]
[1753898561503,3.23,178.37,178.3,118.28]
[1753898561804,5.6073,178.34,178.27,5.6094]
[1753898562008,3.23,178.33,178.25,0.52]
[1753898562601,3.23,178.33,178.24,376.94]
[1753898563006,3.23,178.29,178.19,0.52]
[1753898563308,3.23,178.29,178.2,12.76947979]
[1753898563610,3.23,178.27,178.21,0.52]
[1753898563807,3.23,178.3,178.23,12.76947979]
[1753898564108,3.23,178.33,178.27,0.52]
[1753898564514,8.8377,178.33,178.27,0.52]
[1753898564712,3.23,178.33,178.27,0.52]
[1753898565106,3.23,178.34,178.22,0.52]
[1753898565304,3.23,178.34,178.25,12.76947979]
[1753898565500,5.6083,178.31,178.24,5.6102]
[1753898565701,3.23,178.3,178.22,12.76947979]
[1753898566008,3.23,178.3,178.24,5.6104]
[1753898566310,3.23,178.3,178.22,12.76947979]
[1753898566508,3.23,178.37,178.25,12.76947979]
[1753898566711,3.23,178.34,178.26,0.52]
[1753898567214,3.23,178.38,178.25,12.76947979]
[1753898567600,3.23,178.38,178.3,5.6085]
[1753898567805,3.23,178.38,178.28,13.28947979]
[1753898568110,5.6064,178.37,178.31,5.6082]
[1753898568310,3.23,178.38,178.31,12.76947979]
[1753898568711,8.8361,178.38,178.31,18.37767979]
[1753898568913,3.23,178.37,178.31,12.76947979]
[1753898569107,3.23,178.37,178.27,118.18]
[1753898569305,3.23,178.37,178.26,389.68947979]
[1753898569906,3.23,178.33,178.26,395.29907979]
[1753898570107,3.23,178.33,178.26,389.68947979]
[1753898570605,3.23,178.33,178.26,376.92]
[1753898570806,5.6086,178.3,178.26,376.92]
[1753898571003,3.23,178.29,178.26,376.92]
[1753898571202,3.23,178.35,178.26,376.92]
[1753898572504,3.23,178.28,178.26,376.92]
[1753898572708,3.23,178.32,178.21,0.97621185]
[1753898574012,5.609,178.29,178.22,5.6109]
[1753898574208,3.23,178.28,178.21,0.97621185]
[1753898574410,3.23,178.34,178.22,0.53]
[1753898574712,3.23,178.34,178.24,0.53]
[1753898574915,3.23,178.34,178.22,12.76947979]
[1753898575107,12.76947979,178.35,178.23,5.6106]
[1753898575313,3.23,178.29,178.23,117.94]
[1753898575517,3.23,178.29,178.25,5.6099]
[1753898575714,12.76947979,178.35,178.23,117.94]
[1753898575916,3.23,178.34,178.24,0.53]
[1753898576113,5.6081,178.32,178.25,5.61]
[1753898576312,3.23,178.32,178.24,0.53]
[1753898576916,3.23,178.32,178.22,12.76947979]
[1753898577117,3.23,178.32,178.25,117.82]
[1753898577305,5.6084,178.31,178.25,117.82]
[1753898577510,3.23,178.29,178.25,117.82]
[1753898577714,3.23,178.34,178.23,0.53]
[1753898577915,3.23,178.34,178.22,12.76947979]
[1753898578111,3.23,178.34,178.24,117.74]
[1753898578510,3.23,178.34,178.22,13.29947979]
[1753898578710,3.23,178.34,178.23,117.76]
[1753898578917,8.7286,178.3,178.24,5.6103]
[1753898579114,3.12,178.3,178.23,117.76]
[1753898579517,8.7286,178.3,178.23,123.3707]
[1753898579718,3.12,178.3,178.23,123.3707]
[1753898579918,3.12,178.3,178.25,5.6101]
[1753898580117,3.12,178.3,178.23,117.76]
[1753898580118,12.76947979,178.36,178.23,117.76]
[1753898580312,3.12,178.35,178.28,12.76947979]
[1753898580512,3.12,178.35,178.28,13.29947979]
[1753898580818,3.12,178.35,178.28,130.76947979]
[1753898581019,3.12,178.35,178.29,0.53]
[1753898581211,3.12,178.35,178.26,0.53]
[1753898581407,3.12,178.35,178.3,5.6083]
[1753898581611,3.12,178.41,178.25,118.04]
[1753898581913,3.12,178.38,178.26,118.65]
[1753898582117,3.12,178.36,178.26,118.65]
[1753898582319,3.12,178.36,178.21,0.97621185]
[1753898582320,12.76947979,178.36,178.21,1.50621185]
[1753898582515,3.12,178.26,178.21,6.58751185]
[1753898582715,3.12,178.29,178.18,3.76627063]
[1753898582909,0.97623923,178.43,177.76,50.05004341]
[1753898582910,3.12,178.24,178.16,0.9766365]
[1753898583115,3.12,178.19,178.16,0.9766365]
[1753898583309,3.12,178.19,177.96,12.76947979]
[1753898583310,12.76947979,178.16,178.03,12.76947979]
[1753898583515,3.12,178.12,178.05,5.6162]
[1753898583718,3.12,178.2,178.09,3.2]
[1753898583916,3.12,178.2,178.12,3.2]
[1753898584218,3.12,178.2,178.12,2.2228013]
[1753898584420,12.76947979,178.19,177.96,12.76947979]
[1753898584628,3.12,178.15,178.02,12.76947979]
[1753898584827,3.12,178.15,178.05,12.76947979]
[1753898585119,12.76947979,178.19,178.04,12.76947979]
[1753898585324,3.12,178.13,178.04,12.76947979]
[1753898585618,3.12,178.17,178.1,5.6149]
[1753898585820,3.12,178.17,178.07,12.76947979]
[1753898586020,3.12,178.17,177.96,12.76947979]
[1753898586222,3.12,178.17,178.11,3.2]
[1753898586417,3.12,178.23,178.11,3.2]
[1753898586821,3.12,178.22,178.11,3.2]
[1753898587038,3.12,178.19,178.08,123.42]
[1753898587233,3.12,178.16,178.08,120.22]
[1753898587437,11.2175,178.3,178.05,3.2]
[1753898587438,3.12,178.13,178.05,3.2]
[1753898587935,3.12,178.19,178.08,3.2]
[1753898588637,3.12,178.22,178.13,12.76947979]
[1753898588937,3.12,178.19,178.08,3.2]
[1753898589134,3.12,178.24,178.13,12.76947979]